bitfinex-derivatives/quotes_ETHF0:USTF0_20241004
["timestamp","ask_amount","ask_price","bid_price","bid_amount"]
[1728049353448,0.4179,2392.5,2392.1,1.45526]
[1728049353642,0.4179,2392.5,2392.4,0.41809]
[1728049353844,0.83597,2392.5,2392.4,0.41809]
[1728049354448,0.4179,2392.5,2392.4,0.41809]
[1728049354647,0.83597,2392.5,2392.4,0.41809]
[1728049355249,0.41811,2392.4,2392.2,0.41812]
[1728049355444,0.41811,2392.3,2391.9,3.2078]
[1728049355650,0.4179,2392.5,2391.9,3.2078]
[1728049355854,0.4179,2392.5,2391.9,4.25324]
[1728049356045,3.2078,2392.3,2391.9,3.2078]
[1728049356248,0.41814,2392.2,2392.1,0.41814]
[1728049356656,0.4179,2392.5,2391.9,3.2078]
[1728049356958,1.46309,2392.5,2392.0,1.04541]
[1728049357151,1.04523,2392.4,2391.9,3.2078]
[1728049357457,1.46309,2392.5,2392.0,1.04541]
[1728049357458,0.4179,2392.5,2392.0,1.04541]
[1728049357759,0.4179,2392.5,2392.4,0.41809]
[1728049358148,0.83597,2392.5,2392.4,0.41809]
[1728049358556,0.406,2392.6,2392.5,0.41807]
[1728049358758,0.82406,2392.6,2392.5,0.41807]
[1728049359655,0.406,2392.6,2392.1,1.04536]
[1728049359961,0.406,2392.6,2392.4,0.41808]
[1728049360154,0.406,2392.6,2391.9,3.2078]
[1728049360155,3.6138,2392.6,2391.9,3.2078]
[1728049360357,1.04519,2392.5,2392.0,0.41815]
[1728049360661,0.41813,2392.2,2392.1,0.41813]
[1728049361050,1.04519,2392.5,2392.1,0.41813]
[1728049361254,1.04523,2392.4,2392.2,0.41811]
[1728049361456,0.41809,2392.4,2392.3,0.4181]
[1728049361953,4.59809,2392.4,2392.3,0.4181]
[1728049362151,3.6138,2392.6,2392.1,1.04534]
[1728049362345,0.406,2392.6,2392.1,1.04534]
[1728049362557,1.45115,2392.6,2392.3,0.4181]
[1728049362753,1.45115,2392.6,2391.9,8.53562]
[1728049362754,0.41808,2392.5,2392.4,0.41809]
[1728049363146,0.41808,2392.5,2392.3,0.4181]
[1728049363147,0.4181,2392.4,2392.3,0.4181]
[1728049363659,1.45115,2392.6,2392.0,1.04541]
[1728049363859,1.45115,2392.6,2392.3,0.41809]
[1728049364155,0.41811,2392.3,2392.2,0.41811]
[1728049364358,0.41809,2392.4,2392.3,0.4181]
[1728049364676,0.41808,2392.5,2392.4,0.41808]
[1728049364853,4.65895,2392.6,2392.0,1.0454]
[1728049365050,4.65895,2392.6,2391.9,4.51564]
[1728049365247,0.41809,2392.5,2391.9,4.51564]
[1728049365451,0.41809,2392.4,2392.3,0.41809]
[1728049365856,0.41814,2392.2,2392.1,0.41814]
[1728049366057,0.41814,2392.2,2391.6,3.2078]
[1728049366058,4.18,2392.2,2391.6,3.2078]
[1728049366261,0.41819,2391.9,2391.6,3.2078]
[1728049366580,1.04558,2391.6,2391.1,0.41831]
[1728049366765,1.2133,2391.5,2390.8,4.25369]
[1728049367061,1.2133,2391.5,2391.4,0.41826]
[1728049367263,0.7904,2391.5,2391.4,0.41826]
[1728049367956,1.20865,2391.5,2391.4,0.41826]
[1728049368283,0.7904,2391.5,2391.4,0.41826]
[1728049369559,1.04551,2391.8,2391.1,0.2624]
[1728049369870,0.41824,2391.6,2391.1,0.2624]
[1728049370164,0.41825,2391.5,2391.3,0.41827]
[1728049370662,0.41825,2391.5,2391.4,0.41826]
[1728049370958,0.41824,2391.6,2391.4,0.41826]
[1728049371463,0.8374,2391.8,2391.2,3.26]
[1728049371660,0.8374,2391.8,2391.5,0.41824]
[1728049371661,0.41822,2391.7,2391.5,0.41824]
[1728049371968,0.41818,2391.9,2391.7,0.41821]
[1728049372262,0.41818,2391.9,2391.4,4.25347]
[1728049372263,0.41816,2392.0,2391.8,3.67818]
[1728049372464,0.41818,2391.9,2391.8,3.26]
[1728049372764,0.41818,2392.0,2391.8,0.41819]
[1728049373061,0.41818,2391.9,2391.7,0.4182]
[1728049373257,0.41818,2392.0,2391.6,3.26]
[1728049373462,4.83917754,2392.1,2391.6,3.26]
[1728049373663,0.41819,2391.9,2391.7,0.4182]
[1728049374361,7.00160754,2392.1,2391.6,3.26]
[1728049374671,0.41818,2391.9,2391.7,0.41821]
[1728049374966,1.04541,2392.0,2391.4,6.4678]
[1728049375189,0.41819,2391.9,2391.4,6.4678]
[1728049375467,0.41819,2391.9,2391.7,0.41821]
[1728049375662,0.41817,2392.0,2391.8,0.41819]
[1728049376067,0.41818,2391.9,2391.7,0.4182]
[1728049376364,0.41816,2392.0,2391.8,0.41819]
[1728049376558,3.2078,2392.1,2391.4,7.51346]
[1728049376761,0.41818,2392.0,2391.7,0.4182]
[1728049376955,4.25317,2392.1,2391.4,7.51346]
[1728049377156,0.41817,2392.0,2391.7,0.4182]
[1728049377368,0.41818,2391.9,2391.7,0.4182]
[1728049377572,7.51317,2392.1,2391.4,3.2078]
[1728049377757,0.41817,2392.0,2391.8,0.41819]
[1728049377957,0.41815,2392.1,2391.9,0.41817]
[1728049378360,0.41818,2391.9,2391.7,0.4182]
[1728049379265,1.04536,2392.1,2391.6,3.26]
[1728049379466,1.04536,2392.1,2391.5,0.41825]
[1728049379467,1.04541,2392.0,2391.5,0.41825]
[1728049379659,0.41821,2391.7,2391.4,6.4678]
[1728049379865,0.41821,2391.7,2391.5,0.41823]
[1728049380067,0.41823,2391.7,2391.5,0.41824]
[1728049380266,1.04546,2391.9,2391.5,0.41824]
[1728049380464,7.51318,2392.1,2391.3,1.44281]
[1728049380465,0.4182,2391.8,2391.3,1.44281]
[1728049380674,0.4182,2391.8,2391.6,0.41822]
[1728049380869,0.41823,2391.6,2391.4,0.41825]
[1728049381074,0.4197,2391.7,2391.3,0.3971]
[1728049381264,0.83792,2391.7,2391.5,0.41824]
[1728049381764,0.4197,2391.7,2391.6,0.41823]
[1728049382165,0.41816,2392.1,2391.6,5.22718]
[1728049382368,0.4197,2392.2,2391.8,3.26]
[1728049382780,0.4197,2392.2,2392.1,0.41814]
[1728049383273,0.83783,2392.2,2392.0,0.41816]
[1728049383672,0.83783,2392.2,2392.1,0.41814]
[1728049383673,0.4197,2392.2,2392.1,0.41814]
[1728049383974,0.4197,2392.2,2391.9,0.4053]
[1728049384179,0.4197,2392.2,2392.1,0.41814]
[1728049384378,0.83783,2392.2,2392.0,0.41815]
[1728049384674,0.83783,2392.2,2392.1,0.41814]
[1728049384675,0.4197,2392.2,2392.1,0.41814]
[1728049384879,0.4197,2392.2,2391.9,0.4053]
[1728049385674,0.4197,2392.2,2392.0,0.41815]
[1728049385869,0.4197,2392.2,2392.0,0.41816]
[1728049386066,0.4197,2392.2,2391.9,0.4053]
[1728049386270,0.4197,2392.2,2392.0,0.41815]
[1728049386474,0.4197,2392.2,2392.1,0.41814]
[1728049386676,0.83783,2392.2,2392.0,0.41816]
[1728049386972,0.41815,2392.1,2391.9,0.41817]
[1728049388086,0.41817,2392.0,2391.8,0.41818]
[1728049388280,0.41818,2392.0,2391.8,0.41819]
[1728049388478,0.83783,2392.2,2392.0,0.41815]
[1728049388670,0.83783,2392.2,2391.9,3.26]
[1728049388671,0.4197,2392.2,2391.9,3.26]
[1728049388876,0.4197,2392.2,2392.1,0.41814]
[1728049389174,0.4197,2392.2,2391.9,3.26]
[1728049389574,0.41816,2392.0,2391.8,0.41818]
[1728049389768,0.83783,2392.2,2392.0,0.41816]
[1728049389975,0.4197,2392.2,2391.7,6.4678]
[1728049390173,0.83784,2392.2,2392.0,0.41816]
[1728049390482,0.41816,2392.1,2391.8,0.41818]
[1728049390680,1.46502,2392.2,2391.7,6.4678]
[1728049390881,0.41817,2392.0,2391.7,6.4678]
[1728049391072,0.41817,2392.0,2391.8,0.41819]
[1728049391273,0.4197,2392.2,2391.7,3.26]
[1728049391580,0.83784,2392.2,2392.0,0.41815]
[1728049392477,0.4197,2392.2,2391.8,1.04549]
[1728049392678,0.4197,2392.2,2391.9,3.26]
[1728049392886,0.4197,2392.2,2392.1,0.41814]
[1728049393972,0.83783,2392.2,2392.0,0.41815]
[1728049394174,0.83783,2392.2,2392.1,0.41814]
[1728049394580,0.4197,2392.2,2391.9,3.26]
[1728049394776,0.41815,2392.1,2392.0,0.41815]
[1728049395080,0.41819,2391.8,2391.7,3.2078]
[1728049395289,0.41819,2391.8,2391.7,3.62601]
[1728049395472,1.04541,2392.0,2391.4,3.2078]
[1728049395673,4.0704,2391.7,2391.1,8.45120849]
[1728049395977,0.41827,2391.4,2391.3,0.41828]
[1728049396179,4.30564,2391.5,2390.9,0.4118]
[1728049396477,0.41828,2391.3,2390.9,0.4118]
[1728049396681,0.41828,2391.3,2391.1,0.4183]
[1728049396878,0.41829,2391.3,2390.9,0.4118]
[1728049397078,0.41827,2391.4,2390.9,1.45767]
[1728049397279,0.41827,2391.4,2391.0,3.26]
[1728049397496,0.41827,2391.4,2391.3,0.41828]
[1728049397681,3.62606,2391.5,2391.3,0.41828]
[1728049397886,0.41829,2391.3,2391.1,0.41831]
[1728049398211,0.41831,2391.2,2391.0,0.41833]
[1728049398387,0.82731,2391.2,2391.0,0.41833]
[1728049398588,0.409,2391.2,2391.1,0.41832]
[1728049398982,0.409,2391.2,2391.1,4.60072]
[1728049399286,0.41825,2391.5,2391.3,0.41827]
[1728049399585,0.3902,2391.5,2391.4,0.41826]
[1728049400289,4.5355,2391.7,2391.6,0.41823]
[1728049400590,0.4145,2391.7,2391.6,0.41823]
[1728049400793,0.3902,2391.8,2391.7,0.41821]
[1728049401882,0.4222,2392.1,2391.7,4.1808]
[1728049402077,0.8124,2392.1,2391.6,3.26]
[1728049402280,0.41816,2392.0,2391.8,0.41818]
[1728049402479,0.41816,2392.0,2391.6,3.26]
[1728049402480,0.8124,2392.1,2391.6,3.26]
[1728049402691,0.3902,2392.1,2391.7,0.4004]
[1728049402889,0.3902,2392.1,2391.9,0.41816]
[1728049403092,0.3902,2392.1,2391.7,0.4004]
[1728049403392,0.80835,2392.1,2391.9,0.41817]
[1728049403584,0.41816,2392.0,2391.8,0.41819]
[1728049403783,0.80836,2392.1,2391.7,0.4004]
[1728049404086,0.41816,2392.0,2391.8,0.41818]
[1728049404287,0.80835,2392.1,2391.9,0.41818]
[1728049405084,0.80835,2392.1,2391.7,0.4004]
[1728049405286,4.30546,2391.9,2391.3,1.09540849]
[1728049405506,6.8951,2391.8,2391.0,7.1373]
[1728049405686,0.41828,2391.4,2391.1,0.4183]
[1728049405883,3.26,2391.6,2391.0,0.4069]
[1728049406189,3.26,2391.6,2391.4,0.41826]
[1728049406190,0.3969,2391.5,2391.4,0.41826]
[1728049406688,0.4171,2391.7,2391.6,0.41823]
[1728049406893,0.3969,2392.0,2391.9,0.41818]
[1728049407489,0.3969,2392.0,2391.3,3.2078]
[1728049407490,0.41818,2391.9,2391.3,7.65819159]
[1728049407718,0.3969,2392.0,2391.3,6.61250159]
[1728049408389,0.3969,2392.0,2391.8,0.41819]
[1728049408589,0.81506,2392.0,2391.8,0.41819]
[1728049408789,0.81506,2392.0,2391.7,0.4182]
[1728049408790,0.41818,2391.9,2391.7,0.4182]
[1728049408990,3.6569,2392.0,2391.5,0.4251]
[1728049409291,1.04545,2391.9,2391.1,3.5226]
[1728049409495,1.04545,2391.9,2391.5,0.41824]
[1728049409699,1.04545,2391.9,2391.1,3.5226]
[1728049409993,3.6569,2392.0,2391.0,1.61245477]
[1728049409994,3.26,2391.6,2391.0,0.4251]
[1728049410294,0.41828,2391.3,2391.2,0.41829]
[1728049410895,0.41827,2391.4,2391.2,0.41829]
[1728049411093,4.429,2391.5,2391.2,0.41829]
[1728049411288,4.429,2391.5,2391.0,0.4251]
[1728049411489,0.41827,2391.4,2391.2,0.41829]
[1728049411696,0.41829,2391.3,2391.1,0.41831]
[1728049411892,0.41827,2391.4,2391.2,0.41829]
[1728049412085,4.429,2391.5,2391.0,0.4251]
[1728049412294,5.47463,2391.5,2391.0,0.4251]
[1728049412494,0.4183,2391.3,2390.9,3.2078]
[1728049412703,0.41828,2391.3,2391.1,0.4183]
[1728049412910,0.41828,2391.3,2391.1,0.41831]
[1728049413095,8.73463,2391.5,2391.1,0.41831]
[1728049413297,0.41829,2391.3,2391.1,0.41831]
[1728049413604,0.41829,2391.3,2390.9,3.2078]
[1728049413898,0.4183,2391.2,2391.1,0.41831]
[1728049414089,0.41827,2391.4,2391.3,0.41827]
[1728049414487,0.41827,2391.4,2391.3,0.41828]
[1728049414894,4.429,2391.5,2390.9,3.2078]
[1728049415095,4.429,2391.5,2391.1,0.4183]
[1728049415096,8.73466,2391.5,2391.1,0.4183]
[1728049415397,8.73466,2391.5,2391.3,0.41827]
[1728049415398,0.41827,2391.4,2391.3,0.41827]
[1728049415592,0.8058,2391.5,2391.1,1.04579]
[1728049415812,1.22406,2391.5,2391.1,1.04579]
[1728049415993,0.8058,2391.5,2391.4,0.41826]
[1728049416192,1.22405,2391.5,2391.4,0.41826]
[1728049416491,1.04567,2391.4,2391.1,0.41831]
[1728049416695,0.41833,2391.0,2390.9,3.2078]
[1728049416896,0.41833,2391.0,2390.8,0.41836]
[1728049417099,0.41833,2391.0,2390.4,0.3915]
[1728049417100,0.388,2390.9,2390.4,0.3915]
[1728049417397,0.41842,2390.6,2390.4,0.41843]
[1728049417602,3.26,2390.7,2390.4,0.41843]
[1728049417603,0.41842,2390.5,2390.4,0.41843]
[1728049417798,3.6199,2390.8,2390.2,0.41847]
[1728049417799,0.41845,2390.4,2390.2,0.41847]
[1728049417996,0.4055,2390.4,2389.9,4.51651]
[1728049418202,0.4055,2390.4,2390.3,0.41846]
[1728049418404,3.6199,2390.8,2390.6,0.4184]
[1728049418595,0.4055,2390.7,2390.6,0.4184]
[1728049419397,0.80636,2390.9,2390.7,0.41839]
[1728049419901,0.388,2390.9,2390.4,1.04611]
[1728049420088,0.388,2390.9,2390.4,1.30851]
[1728049420291,3.26,2390.5,2390.4,0.41844]
[1728049420494,3.62617,2390.8,2390.6,0.4184]
[1728049420690,0.41841,2390.6,2390.4,0.41842]
[1728049420901,0.41841,2390.6,2390.4,0.41843]
[1728049421203,0.8457,2390.7,2390.5,0.41842]
[1728049421496,0.84569,2390.7,2390.6,0.4184]
[1728049421695,0.4273,2390.7,2390.1,6.4678]
[1728049421997,0.4184,2390.6,2390.5,0.41842]
[1728049422204,0.4184,2390.6,2390.1,4.25403]
[1728049422403,0.4184,2390.6,2390.5,0.41842]
[1728049422800,0.4184,2390.6,2390.2,0.41847]
[1728049422801,0.41846,2390.3,2390.2,0.41847]
[1728049423308,0.41847,2390.2,2390.1,3.62628]
[1728049423503,0.3916,2390.2,2390.1,3.62629]
[1728049423704,0.3916,2390.2,2390.1,0.41849]
[1728049425802,5.16697,2390.8,2390.1,0.41849]
[1728049425803,7.3288,2390.8,2390.2,1.04619]
[1728049426010,0.41839,2390.7,2390.6,0.4184]
[1728049426305,3.2078,2390.8,2390.5,0.41841]
[1728049426505,1.84609,2390.9,2390.1,4.30624]
[1728049426506,0.8002,2390.9,2390.1,4.30624]
[1728049426804,0.8002,2390.9,2390.3,1.04614]
[1728049426997,1.84609,2390.9,2390.5,0.41842]
[1728049427194,0.4184,2390.7,2390.5,0.41842]
[1728049427397,0.8002,2390.9,2390.5,0.41842]
[1728049427708,0.4184,2390.7,2390.5,0.41842]
[1728049428124,0.41841,2390.6,2390.4,0.41843]
[1728049428405,1.21856,2390.9,2390.4,1.04608]
[1728049428614,0.3916,2390.9,2390.8,0.41837]
[1728049428805,3.6131,2391.4,2390.8,4.1824]
[1728049429020,4.03137,2391.4,2391.2,0.41828]
[1728049429208,0.4053,2391.4,2390.9,3.26]
[1728049429504,0.82358,2391.4,2390.8,4.30593]
[1728049429704,0.82358,2391.4,2391.2,0.4183]
[1728049429912,0.4053,2391.4,2390.8,4.30593]
[1728049430109,0.82358,2391.4,2390.8,4.30593]
[1728049430307,0.4053,2391.4,2390.8,4.30593]
[1728049430602,0.41831,2391.2,2391.0,0.41833]
[1728049430798,0.41831,2391.2,2390.6,7.51379]
[1728049431002,0.41831,2391.2,2391.0,0.41833]
[1728049431203,3.2078,2391.3,2390.7,1.04597]
[1728049431403,0.4053,2391.4,2391.3,0.41828]
[1728049431706,0.82358,2391.4,2391.1,0.41831]
[1728049432410,0.41828,2391.3,2391.1,0.41831]
[1728049433017,0.41828,2391.3,2390.8,3.26]
[1728049433315,4.08357,2391.4,2391.2,0.41829]
[1728049434512,0.4053,2391.4,2391.3,0.41828]
[1728049435526,0.82358,2391.4,2391.2,0.4183]
[1728049436013,0.41828,2391.3,2391.2,0.4183]
[1728049436206,0.41828,2391.3,2391.1,0.41831]
[1728049436508,3.67828,2391.3,2391.0,0.4173]
[1728049436706,3.26,2391.3,2391.2,0.4183]
[1728049437614,3.67828,2391.3,2391.2,0.4183]
[1728049437812,3.26,2391.3,2391.2,0.4183]
[1728049438601,3.67828,2391.3,2391.2,0.4183]
[1728049438801,0.4183,2391.2,2391.0,0.41833]
[1728049439024,0.4122,2391.2,2390.7,1.04595]
[1728049439206,0.82357,2391.4,2391.2,0.41828]
[1728049439505,0.82357,2391.4,2390.9,1.04587]
[1728049439707,0.82357,2391.4,2391.2,0.41828]
[1728049439905,0.41828,2391.3,2391.2,0.41828]
[1728049440307,0.41828,2391.3,2391.1,0.4183]
[1728049440609,0.41829,2391.3,2391.1,0.4183]
[1728049440807,0.82358,2391.4,2391.2,0.41828]
[1728049441204,0.4053,2391.4,2391.2,0.41828]
[1728049441425,0.82358,2391.4,2391.2,0.41828]
[1728049441605,0.4053,2391.4,2390.9,1.04587]
[1728049441822,0.82357,2391.4,2391.3,0.41828]
[1728049442215,0.4053,2391.4,2390.9,1.04587]
[1728049442415,0.3991,2391.5,2390.9,3.2078]
[1728049442617,1.04558,2391.6,2391.0,3.5223]
[1728049442809,1.04558,2391.6,2391.0,0.41832]
[1728049442810,3.67831,2391.2,2391.0,0.41832]
[1728049443119,0.41832,2391.1,2391.0,0.41833]
[1728049443413,0.3925,2391.1,2391.0,0.41833]
[1728049443816,0.8186,2391.5,2390.8,3.26]
[1728049444113,0.8186,2391.5,2391.3,0.41828]
[1728049444114,0.3925,2391.4,2391.3,0.41828]
[1728049444309,1.23685,2391.5,2391.4,0.41826]
[1728049444310,0.3924,2391.5,2391.4,0.41826]
[1728049444508,7.7735,2391.8,2391.1,1.102]
[1728049444705,4.9059,2391.8,2391.2,6.4678]
[1728049444915,5.3241,2391.8,2391.6,0.41822]
[1728049445110,5.3241,2391.8,2391.2,7.51352]
[1728049445111,8.1659,2391.8,2391.2,6.4678]
[1728049445315,8.1659,2391.8,2391.7,0.41821]
[1728049445614,3.6525,2391.8,2391.3,1.04571]
[1728049445823,4.0781,2391.8,2391.7,0.41821]
[1728049446018,4.4963,2391.8,2391.3,1.04571]
[1728049446322,4.4963,2391.8,2391.7,0.41821]
[1728049446617,4.0781,2391.8,2391.7,0.41821]
[1728049446910,0.8181,2391.8,2391.7,0.41821]
[1728049448315,4.0781,2391.8,2391.7,0.41821]
[1728049448712,14.2589,2391.8,2391.1,0.4188]
[1728049448916,14.2589,2391.8,2391.0,0.41833]
[1728049448917,0.41832,2391.1,2391.0,0.41833]
[1728049449112,0.41832,2391.1,2390.7,1.30823]
[1728049449113,0.41833,2391.1,2390.9,1.51374849]
[1728049449318,0.41835,2390.9,2390.8,1.51376849]
[1728049449721,3.6824,2391.0,2390.8,1.51376849]
[1728049449923,3.6824,2391.0,2390.8,1.09540849]
[1728049450124,0.4224,2391.0,2390.9,0.41835]
[1728049450816,0.84073,2391.0,2390.9,0.41835]
[1728049451122,0.4224,2391.0,2390.9,0.41835]
[1728049451724,3.2078,2391.3,2390.8,1.09540849]
[1728049451920,4.0267,2391.6,2391.5,0.41825]
[1728049452125,0.41818,2391.9,2391.6,0.41822]
[1728049452320,1.23711,2391.8,2391.3,4.30571]
[1728049452625,1.23711,2391.8,2391.2,1.45705]
[1728049452626,3.26,2391.7,2391.2,1.45705]
[1728049452825,0.41824,2391.6,2391.5,0.41824]
[1728049453023,0.41825,2391.5,2391.2,0.4113]
[1728049453229,0.41825,2391.5,2391.4,0.41826]
[1728049453725,3.26,2391.7,2391.2,1.45705]
[1728049453925,0.8189,2391.8,2391.2,1.45705]
[1728049453926,0.8189,2391.8,2391.7,0.41821]
[1728049454921,1.23709,2391.8,2391.7,0.41821]
[1728049455223,14.2597,2391.8,2391.2,0.4113]
[1728049455427,0.41823,2391.6,2391.5,0.41824]
[1728049455630,0.41823,2391.6,2391.2,1.45704]
[1728049455631,0.41825,2391.5,2391.4,0.41826]
[1728049455839,3.26,2391.6,2391.2,0.4113]
[1728049456026,3.26,2391.6,2391.2,1.45705]
[1728049456324,3.67824,2391.6,2391.5,0.41825]
[1728049456915,3.26,2391.6,2391.2,1.45705]
[1728049457115,3.26,2391.6,2391.4,0.41825]
[1728049457116,0.41825,2391.5,2391.4,0.41825]
[1728049457425,3.67825,2391.6,2391.5,0.41825]
[1728049457628,0.41825,2391.5,2391.4,0.41825]
[1728049458526,0.41827,2391.4,2391.3,0.41827]
[1728049458827,3.662,2391.4,2390.6,0.209]
[1728049459124,3.6784,2390.7,2390.6,0.41839]
[1728049459926,3.26,2390.7,2390.6,0.41839]
[1728049460230,0.402,2390.8,2390.7,0.41839]
[1728049461932,0.82037,2390.8,2390.7,0.41839]
[1728049462148,0.402,2390.8,2390.7,0.41839]
[1728049462426,0.402,2390.8,2390.6,0.41839]
[1728049462638,0.402,2390.8,2390.7,0.41839]
[1728049462639,0.82037,2390.8,2390.7,0.41839]
[1728049462830,0.402,2390.8,2390.7,0.41839]
[1728049463034,0.402,2390.8,2390.6,0.41839]
[1728049463233,0.82037,2390.8,2390.7,0.41839]
[1728049463623,0.402,2390.8,2390.7,0.41839]
[1728049463824,0.82037,2390.8,2390.7,0.41839]
[1728049465319,0.41842,2390.6,2390.5,0.41841]
[1728049465943,7.4432,2390.6,2390.1,3.2078]
[1728049466240,4.30603,2390.6,2390.0,0.4164]
[1728049466428,3.26,2390.6,2390.0,0.4164]
[1728049466726,3.2078,2390.6,2390.1,1.04623]
[1728049466929,3.2078,2390.6,2390.5,0.41842]
[1728049467126,0.402,2390.8,2390.4,3.26]
[1728049467327,0.402,2390.8,2390.7,0.41839]
[1728049467933,0.4078,2390.9,2390.7,0.41838]
[1728049468231,0.41838,2390.8,2390.7,0.41837]
[1728049468622,0.8335,2391.1,2390.6,1.04602]
[1728049468926,0.8335,2391.1,2390.5,0.4208]
[1728049468927,4.0935,2391.1,2390.5,0.683]
[1728049469229,3.26,2390.8,2390.6,0.41839]
[1728049469439,3.26,2390.8,2390.2,1.04619]
[1728049469440,0.8307,2390.7,2390.2,0.4302]
[1728049469829,0.8307,2390.7,2390.2,1.47638]
[1728049470128,1.2491,2390.7,2390.2,1.47638]
[1728049470324,1.2491,2390.7,2390.6,0.4184]
[1728049470524,0.41841,2390.6,2390.5,0.41841]
[1728049470726,0.4042,2390.7,2390.6,0.4184]
[1728049470928,4.05264,2391.0,2390.9,0.41835]
[1728049471237,6.8943,2391.0,2390.3,3.26]
[1728049471429,0.41837,2390.8,2390.7,0.41838]
[1728049471936,0.41837,2390.8,2390.4,1.0461]
[1728049471937,0.41841,2390.6,2390.5,0.41842]
[1728049472140,6.4678,2390.6,2389.8,1.04634]
[1728049472441,0.8538,2390.5,2390.0,1.04627]
[1728049472732,0.41845,2390.4,2390.3,0.41845]
[1728049472947,0.8538,2390.5,2389.9,0.4302]
[1728049472948,0.4265,2390.5,2390.4,0.41844]
[1728049473548,0.4042,2390.7,2390.6,0.4184]
[1728049474030,3.6642,2390.7,2390.1,4.254]
[1728049474226,0.41843,2390.5,2390.4,0.41844]
[1728049474427,3.26,2390.5,2390.1,0.3886]
[1728049474636,0.41847,2390.2,2390.1,0.41849]
[1728049474831,0.4185,2390.1,2390.0,0.4185]
[1728049475032,0.4185,2390.1,2389.8,2.52810546]
[1728049475033,3.6503,2390.2,2389.8,1.48175546]
[1728049475235,3.67852,2390.0,2389.9,0.41852]
[1728049475435,3.26,2390.0,2389.8,1.09315546]
[1728049475641,0.4289,2389.9,2389.8,1.51168546]
[1728049475943,0.84743,2389.9,2389.8,1.51168546]
[1728049476137,0.84743,2389.9,2389.8,1.09315546]
[1728049476330,0.4289,2389.9,2389.8,1.09315546]
[1728049476545,0.84743,2389.9,2389.8,1.51169546]
[1728049476736,0.84743,2389.9,2389.8,1.09315546]
[1728049477151,5.03143,2389.9,2389.8,1.09315546]
[1728049477340,10.6129,2389.9,2389.7,1.63973772]
[1728049477534,7.86334,2389.8,2389.7,1.63973772]
[1728049478042,13.86334,2389.8,2389.7,1.63973772]
[1728049478944,13.4448,2389.8,2389.4,3.09210093]
[1728049479139,6.4678,2389.5,2389.2,7.2376059]
[1728049479337,3.26,2389.3,2389.1,4.41175222]
[1728049479642,3.2078,2389.2,2388.9,7.1e-06]
[1728049479843,3.67868,2389.0,2388.9,7.1e-06]
[1728049480034,9.67868,2389.0,2388.9,7.1e-06]
[1728049480232,13.4456,2389.0,2388.2,0.209]
[1728049480437,13.4456,2389.0,2387.8,3.6086]
[1728049480438,0.41884,2388.2,2387.8,3.6086]
[1728049480639,3.2078,2388.3,2387.8,7.28749]
[1728049480942,6.4678,2388.3,2387.8,3.6086]
[1728049481239,3.67884,2388.2,2387.8,3.6086]
[1728049481442,3.26,2388.2,2387.8,3.6086]
[1728049481930,6.4678,2388.0,2387.5,2.92126535]
[1728049482140,3.26,2387.7,2387.5,2.92126535]
[1728049482353,3.67893,2387.6,2387.5,0.79590535]
[1728049482545,8.27863,2387.6,2387.5,5.35e-06]
[1728049482737,0.41905,2386.9,2386.8,0.209]
[1728049482939,0.41908,2386.8,2386.5,0.4208]
[1728049483251,0.41908,2386.8,2386.3,3.2078]
[1728049483442,7.65687,2386.9,2386.3,3.2078]
[1728049483743,7.2378,2386.9,2386.3,3.2078]
[1728049484240,7.65686,2386.9,2386.3,3.2078]
[1728049484441,7.65686,2386.9,2386.3,3.62694]
[1728049484746,0.41907,2386.8,2386.3,3.62695]
[1728049484939,3.62686,2386.9,2386.4,0.41913]
[1728049485441,3.62686,2386.9,2386.3,3.2078]
[1728049485743,3.2078,2386.9,2386.5,0.41912]
[1728049485938,3.62685,2386.9,2386.5,0.41912]
[1728049486141,7.3288,2387.2,2386.3,3.2078]
[1728049486442,7.3288,2387.2,2387.1,0.41902]
[1728049486443,4.121,2387.2,2387.1,0.41902]
[1728049486632,3.6195,2387.6,2387.3,0.41897]
[1728049486943,3.62668,2387.9,2387.5,0.41893]
[1728049487139,6.45864514,2388.2,2387.2,3.2078]
[1728049487332,6.45864514,2388.2,2387.3,0.41898]
[1728049487333,0.41886,2388.0,2387.3,0.41898]
[1728049487536,6.45864514,2388.2,2387.3,1.04747]
[1728049487845,6.45864514,2388.2,2387.8,0.41889]
[1728049488147,6.45864514,2388.2,2388.0,0.41885]
[1728049488343,3.25084514,2388.2,2387.9,0.41887]
[1728049489044,3.25084514,2388.2,2388.0,0.41886]
[1728049489239,3.25084514,2388.2,2387.9,0.41887]
[1728049489546,0.8315,2388.4,2387.6,0.4167]
[1728049489741,0.8315,2388.4,2388.0,0.41885]
[1728049490245,0.8315,2388.4,2387.6,0.4167]
[1728049490444,0.4127,2388.4,2388.1,0.41883]
[1728049490641,3.2078,2388.6,2388.3,0.4188]
[1728049490854,4.03,2388.8,2388.5,0.41877]
[1728049491034,4.03,2388.8,2387.8,4.25505]
[1728049491442,4.03,2388.8,2388.5,0.41876]
[1728049491643,4.03,2388.8,2387.8,3.2078]
[1728049491843,4.44873,2388.8,2388.4,0.41878]
[1728049492042,4.03,2388.8,2387.9,1.0472]
[1728049492238,4.44873,2388.8,2388.4,0.41878]
[1728049493342,4.03,2388.8,2387.8,3.2078]